bitfinex/quotes_ETHUSD_20240811
["timestamp","ask_amount","ask_price","bid_price","bid_amount"]
[1723381880755,16.68468,2624.3,2623.9,0.005]
[1723381881368,10.46824,2624.0,2623.9,0.005]
[1723381881545,7.80056,2624.0,2623.9,0.005]
[1723381881752,2.66768,2624.0,2623.9,0.005]
[1723381881986,5.33536,2624.0,2623.9,0.005]
[1723381882196,6.168896,2624.0,2623.9,0.005]
[1723381882505,5.33536,2624.0,2623.9,0.005]
[1723381882650,5.33536,2624.0,2623.9,0.08216563]
[1723381882854,5.33536,2624.0,2623.9,0.005]
[1723381883485,7.80056,2624.0,2623.9,0.005]
[1723381883684,9.115416,2624.0,2623.9,0.005]
[1723381883862,2.66768,2624.0,2623.9,0.005]
[1723381884253,2.66758,2624.1,2623.9,0.08216563]
[1723381884587,4.93531,2624.6,2623.9,0.08216563]
[1723381884588,2.2682,2624.5,2623.9,0.08216563]
[1723381884763,0.493532,2624.4,2623.9,0.08216563]
[1723381884964,2.2682,2624.5,2623.9,0.08216563]
[1723381884965,4.93538,2624.5,2623.9,0.08216563]
[1723381885286,5.33536,2624.0,2623.9,0.08216563]
[1723381885495,5.33536,2624.0,2623.9,0.005]
[1723381886466,8.55304,2624.0,2623.9,0.005]
[1723381886656,6.967484,2624.0,2623.9,0.005]
[1723381886852,9.635164,2624.0,2623.9,0.005]
[1723381887097,12.635164,2624.0,2623.9,0.005]
[1723381887388,15.302844,2624.0,2623.9,0.005]
[1723381887563,12.635164,2624.0,2623.9,0.005]
[1723381888153,9.417484,2624.0,2623.9,0.005]
[1723381888388,2.66839,2623.3,2623.2,0.11752016]
[1723381888564,5.33678,2623.3,2623.2,0.11752016]
[1723381888893,8.00517,2623.3,2623.2,0.11752016]
[1723381889069,11.00517,2623.3,2623.2,0.11752016]
[1723381889654,11.55517,2623.3,2623.2,0.11752016]
[1723381889855,12.637294,2623.3,2623.2,0.11752016]
[1723381890054,12.637294,2623.3,2622.0,0.00239706]
[1723381890055,2.66947,2622.3,2622.0,0.00239706]
[1723381890355,4.93723,2622.7,2622.0,0.00239706]
[1723381890356,2.66961,2622.1,2622.0,0.00239706]
[1723381890563,5.33922,2622.1,2622.0,0.00239706]
[1723381890984,5.88922,2622.1,2622.0,0.00239706]
[1723381891358,14.04852295,2622.1,2622.0,0.00239706]
[1723381891576,8.00943,2621.9,2621.8,0.07733416]
[1723381891902,0.59775689,2622.1,2621.8,0.07733416]
[1723381892061,2.66915,2622.6,2621.8,0.07733416]
[1723381892262,2.66963,2622.1,2621.8,0.07733416]
[1723381892462,2.66892,2622.8,2621.8,0.31699758]
[1723381892786,5.33854,2622.5,2621.8,0.31699758]
[1723381892989,2.66924,2622.5,2621.8,0.31699758]
[1723381893199,2.66881,2622.9,2622.0,4.98899]
[1723381893496,2.66899,2622.8,2622.1,2.66953]
[1723381893798,2.66874,2623.0,2622.1,3.168413]
[1723381894100,2.2682,2623.4,2622.1,3.168413]
[1723381894101,2.66856,2623.2,2622.5,2.66912]
[1723381894304,2.66856,2623.2,2622.3,4.98863]
[1723381894305,2.66876,2623.0,2622.6,0.266912]
[1723381894488,2.66823,2623.5,2622.3,2.3193]
[1723381894489,2.66911,2622.6,2622.3,2.3193]
[1723381894660,2.66938,2622.4,2621.9,2.3193]
[1723381894861,2.2682,2623.1,2621.9,2.55896342]
[1723381894862,4.93687,2623.1,2621.9,2.55896342]
[1723381895167,2.2682,2623.1,2622.1,2.66961]
[1723381895390,4.93686,2623.1,2621.9,5.22877342]
[1723381895623,2.66919,2622.6,2622.0,0.53061076]
[1723381895808,2.89556,2623.0,2622.1,2.6696]
[1723381896019,2.66898,2622.8,2622.2,2.98952108]
[1723381896216,3.0,2623.3,2622.2,0.32002108]
[1723381896396,2.66878,2623.0,2622.3,2.66933]
[1723381896597,2.66899,2622.8,2622.2,0.32002108]
[1723381896824,2.66899,2622.8,2622.1,5.33912]
[1723381897006,2.66872,2623.0,2622.1,2.66954]
[1723381897193,2.66893,2622.8,2622.4,2.3193]
[1723381897401,2.66912,2622.6,2622.4,2.3193]
[1723381897596,2.66903,2622.7,2622.4,2.3193]
[1723381897904,2.66893,2622.8,2622.4,2.3193]
[1723381898105,2.66867,2623.1,2622.4,2.55123]
[1723381898311,2.66867,2623.1,2622.4,5.22051]
[1723381898525,2.2682,2623.8,2622.6,2.66904]
[1723381898843,2.66826,2623.5,2622.8,2.66889]
[1723381899141,2.66832,2623.4,2622.8,2.66887]
[1723381899442,2.66823,2623.5,2622.7,0.27452968]
[1723381899591,5.33693,2623.3,2622.6,2.66908]
[1723381899790,2.2682,2623.8,2622.4,5.2205]
[1723381899791,2.2682,2623.8,2623.0,2.66867]
[1723381899994,2.66825,2623.5,2623.0,2.3193]
[1723381900425,2.66836,2623.4,2623.0,2.3193]
[1723381900622,2.66836,2623.4,2622.4,0.23193]
[1723381900623,3.202011,2623.4,2622.3,2.3193]
[1723381900934,2.6689,2622.8,2622.3,2.3193]
[1723381901123,2.66853,2623.2,2622.6,2.6691]
[1723381901319,2.6687,2623.0,2622.4,2.66926]
[1723381901505,5.33711,2623.2,2622.6,2.6691]
[1723381901713,2.66865,2623.1,2622.5,2.66917]
[1723381902037,2.66862,2623.1,2622.3,2.3193]
[1723381902234,2.66869,2623.0,2622.6,0.07438172]
[1723381902396,2.66869,2623.0,2622.3,2.3193]
[1723381902397,2.66896,2622.8,2622.3,2.3193]
[1723381902810,3.22682,2623.4,2622.4,0.07464751]
[1723381902811,2.66874,2623.0,2622.4,0.07464751]
[1723381903014,2.66889,2622.9,2622.4,0.07464751]
[1723381903251,2.6689,2622.8,2622.4,0.07464751]
[1723381903440,3.22682,2623.4,2622.4,0.07464751]
[1723381903627,2.6692,2622.5,2622.4,0.07464751]
[1723381903822,2.66891,2622.8,2622.4,0.07464751]
[1723381904312,2.66898,2622.8,2622.4,0.07464751]
[1723381904507,0.549502,2623.3,2622.4,0.07464751]
[1723381904709,5.33751,2623.0,2622.4,0.07464751]
[1723381905009,3.257461,2623.0,2622.4,0.07464751]
[1723381905222,3.257461,2623.0,2622.4,2.66928]
[1723381905512,3.21854,2623.2,2622.4,2.66928]
[1723381905513,2.66854,2623.2,2622.6,2.465]
[1723381905721,2.66854,2623.2,2622.6,5.1341]
[1723381905921,2.66854,2623.2,2622.1,0.0762536]
[1723381905922,7.3,2624.2,2623.2,2.66843]
[1723381906129,7.3,2624.2,2623.4,5.13326]
[1723381906326,2.6678,2623.9,2623.4,2.465]
[1723381906749,2.66769,2624.0,2623.4,5.13322]
[1723381907054,2.66789,2623.8,2623.5,0.07401864]
[1723381907234,2.4586,2624.5,2623.5,0.07401864]
[1723381907433,2.4586,2624.5,2622.3,3.0]
[1723381907434,2.66825,2623.5,2623.1,2.465]
[1723381907634,2.66802,2623.7,2623.2,0.07418916]
[1723381907844,2.66802,2623.7,2623.1,2.465]
[1723381907845,2.66749,2624.2,2623.6,2.66808]
[1723381908044,2.66741,2624.3,2623.7,0.266808]
[1723381908246,2.66741,2624.3,2623.7,0.0736804]
[1723381908636,19.77,2624.6,2623.7,0.0736804]
[1723381908637,2.66769,2624.0,2623.7,0.0736804]
[1723381908820,2.66769,2624.0,2623.4,2.6682]
[1723381909024,2.66736,2624.4,2623.8,2.66779]
[1723381909260,2.934126,2624.3,2623.6,5.13303]
[1723381909428,0.59718948,2625.0,2623.9,0.07344242]
[1723381909625,2.6665,2625.2,2624.4,2.66719]
[1723381909827,2.66657,2625.1,2624.5,5.20831052]
[1723381910062,2.66636,2625.3,2624.6,2.73967645]
[1723381910269,2.66664,2625.1,2624.6,0.07261645]
[1723381910466,5.33287,2625.3,2624.6,0.07261645]
[1723381910698,2.66662,2625.1,2624.6,0.07261645]
[1723381910967,2.66675,2625.0,2624.6,0.07261645]
[1723381911143,2.6665,2625.2,2624.6,0.07261645]
[1723381911144,2.66647,2625.2,2624.6,0.07261645]
[1723381911351,2.66684,2624.9,2624.6,0.07261645]
[1723381911531,0.97586,2625.7,2624.7,5.13195]
[1723381911733,2.66644,2625.3,2624.7,2.53751132]
[1723381911946,2.66618,2625.5,2624.8,2.74296688]
[1723381912149,0.39338192,2626.3,2624.9,2.66671]
[1723381912334,2.66587,2625.8,2625.2,2.66637]
[1723381912535,2.66584,2625.9,2625.2,5.33275]
[1723381912732,2.66583,2625.9,2625.3,0.07217072]
[1723381913043,2.66559,2626.1,2625.4,5.13124]
[1723381913245,0.533096,2626.1,2625.4,2.53711397]
[1723381913446,2.66533,2626.4,2625.4,2.53711397]
[1723381913678,5.3323,2625.5,2625.4,0.07211397]
[1723381913979,2.66695,2624.8,2624.5,2.465]
[1723381914348,2.66707,2624.6,2624.5,2.465]
[1723381914546,2.66697,2624.7,2624.1,5.13257]
[1723381915055,0.55,2625.5,2624.2,2.66739]
[1723381915386,2.66641,2625.3,2623.3,2.37478272]
[1723381915535,2.66667,2625.0,2624.1,2.66753]
[1723381916345,2.66673,2625.0,2624.3,2.66728]
[1723381916548,2.66693,2624.8,2624.1,2.6675]
[1723381916856,2.933663,2624.7,2624.1,2.6675]
[1723381917039,2.6671,2624.6,2623.9,5.13269]
[1723381917394,2.66715,2624.6,2624.0,0.07058859]
[1723381917576,2.6669,2624.8,2624.0,3.33477525]
[1723381917753,2.6669,2624.8,2624.2,2.66741]
[1723381917952,2.66669,2625.0,2624.3,2.66737]
[1723381917953,5.33342,2625.0,2624.3,2.66737]
[1723381918172,2.66683,2624.9,2624.3,2.73778818]
[1723381918481,3.200152,2624.9,2624.3,2.73778818]
[1723381918974,3.200152,2624.9,2624.3,2.73775818]
[1723381919182,2.66663,2625.1,2624.5,2.6671]
[1723381919350,2.66644,2625.3,2624.6,2.66706]
[1723381919673,2.66649,2625.2,2624.6,0.07024781]
[1723381919872,2.66673,2625.0,2624.6,0.07024781]
[1723381920171,2.66687,2624.8,2624.4,2.465]
[1723381920339,2.66678,2624.9,2624.7,0.06989069]
[1723381920541,2.66686,2624.8,2624.4,2.465]
[1723381920769,2.66713,2624.6,2624.0,5.65296986]
[1723381921274,2.66693,2624.8,2624.1,2.6675]
[1723381921609,2.66697,2624.7,2624.1,2.6675]
[1723381921756,2.66693,2624.8,2624.1,2.6675]
[1723381921945,2.66698,2624.7,2624.1,2.6675]
[1723381923262,5.12529,2625.0,2624.0,2.465]
[1723381923476,6.64218,2625.4,2624.0,2.465]
[1723381923477,0.41228695,2624.9,2624.0,2.465]
[1723381923685,2.66652,2625.2,2624.6,2.66701]
[1723381923987,19.49,2625.8,2624.8,5.13179]
[1723381923988,5.33267,2625.4,2624.8,5.13179]
[1723381924139,5.33266,2625.4,2624.8,5.13179]
[1723381924335,2.4523,2626.3,2624.8,2.465]
[1723381924580,2.66574,2626.0,2625.4,2.3187]
[1723381924778,2.932034,2626.2,2625.4,2.3187]
[1723381924940,2.932034,2626.2,2625.6,2.66598]
[1723381924941,2.66549,2626.2,2625.6,2.66598]
[1723381925791,2.66549,2626.2,2624.9,0.2465]
[1723381925792,3.2612947,2627.1,2625.8,2.3187]
[1723381925793,2.6651,2626.6,2625.8,2.3187]
[1723381925993,2.66491,2626.8,2625.9,0.07615288]
[1723381926299,2.66493,2626.8,2626.2,2.3187]
[1723381926894,2.66447,2627.2,2626.5,2.66505]
[1723381927054,2.6649,2626.8,2626.2,2.3187]
[1723381927263,0.266447,2627.2,2626.2,2.3187]
[1723381927466,2.66438,2627.3,2625.9,0.23948529]
[1723381927467,2.66438,2627.3,2626.5,2.66506]
[1723381927679,2.66438,2627.3,2626.8,2.3187]
[1723381927894,2.66416,2627.5,2626.9,2.66472]
[1723381928055,2.66416,2627.5,2626.8,2.39483054]
[1723381928056,2.66391,2627.8,2626.8,2.3187]
[1723381928257,2.66419,2627.5,2626.8,2.3187]
[1723381928458,2.66463,2627.0,2626.8,2.3187]
[1723381929607,2.66447,2627.2,2626.8,2.3187]
[1723381930109,2.66464,2627.0,2626.8,2.3187]
[1723381930324,2.66406,2627.6,2626.8,2.3187]
[1723381930325,2.66473,2626.9,2626.8,2.3187]
[1723381930462,2.66473,2626.9,2626.2,2.66541]
[1723381930463,2.66473,2626.9,2626.3,2.3187]
[1723381930659,2.66455,2627.1,2626.4,2.66518]
[1723381930873,2.66435,2627.3,2626.4,2.66517]
[1723381931182,2.9572151,2627.5,2626.5,0.57451877]
[1723381931382,2.66433,2627.3,2626.6,2.66496]
[1723381931582,2.66433,2627.3,2626.8,2.3187]
[1723381931793,2.66417,2627.5,2626.9,0.07612687]
[1723381931971,2.66417,2627.5,2626.9,2.66467]
[1723381932177,2.66417,2627.5,2626.9,5.32933]
[1723381932371,2.66417,2627.5,2627.0,0.0646823]
[1723381932575,2.66393,2627.7,2627.0,0.0646823]
[1723381932794,2.66422,2627.5,2627.0,0.0646823]
[1723381933018,2.66422,2627.5,2626.9,2.66471]
[1723381933186,2.66422,2627.5,2627.1,0.06462562]
[1723381933381,2.66404,2627.6,2627.1,2.3187]
[1723381933581,2.66375,2627.9,2627.2,0.14068392]
[1723381933811,2.66353,2628.1,2627.3,2.66426]
[1723381934028,3.25981084,2628.3,2627.6,2.3187]
[1723381934029,2.66336,2628.3,2627.6,2.3187]
[1723381934184,2.66317,2628.5,2627.9,2.66371]
[1723381934529,2.66317,2628.5,2628.0,0.14021074]
[1723381934839,2.66301,2628.6,2628.1,2.3187]
[1723381935132,2.6625,2629.1,2628.5,2.6631]
[1723381935294,2.6625,2629.1,2628.2,0.06400243]
[1723381935295,0.59618504,2629.5,2629.0,2.66256]
[1723381935501,0.04999294,2629.7,2629.1,2.39475853]
[1723381935717,0.04999294,2629.7,2629.1,2.38219294]
[1723381935886,7.9872,2629.2,2629.1,0.06349294]
[1723381936087,2.66275,2628.9,2628.1,2.3187]
[1723381936395,5.32555,2628.9,2628.3,2.6633]
[1723381936729,2.66298,2628.7,2628.1,2.3187]
[1723381937031,2.66303,2628.6,2628.1,2.3187]
[1723381937326,2.66254,2629.1,2628.1,2.3187]
[1723381937327,2.66253,2629.1,2628.1,2.3187]
[1723381937528,2.66253,2629.1,2628.4,2.66321]
[1723381937529,2.928783,2629.1,2628.4,2.66321]
[1723381937824,2.66279,2628.9,2628.2,2.89522]
[1723381938032,2.66279,2628.9,2628.3,2.66322]
[1723381938186,2.66279,2628.9,2628.2,2.89521]
[1723381938494,2.66293,2628.7,2628.3,0.521391]
[1723381938688,2.66289,2628.8,2628.2,2.6634]
[1723381939025,2.66261,2629.0,2628.4,2.6632]
[1723381939190,2.66239,2629.3,2628.2,2.6634]
[1723381939388,2.66213,2629.5,2628.1,4.98218]
[1723381939389,2.66269,2629.0,2628.3,3.427808]
[1723381939925,2.66277,2628.9,2628.3,3.427808]
[1723381940127,2.66288,2628.8,2628.3,0.764558]
[1723381940531,2.66247,2629.2,2628.4,0.07607931]
[1723381940827,2.66247,2629.2,2628.3,0.764558]
[1723381940828,2.66251,2629.1,2628.5,2.66305]
[1723381941032,2.66247,2629.2,2628.5,2.66305]
[1723381941033,5.32496,2629.2,2628.5,2.66305]
[1723381941195,0.30499929,2629.5,2628.7,2.3187]
[1723381941196,2.66228,2629.4,2628.7,2.3187]
[1723381941399,0.04999294,2629.7,2629.0,2.66253]
[1723381941607,2.66219,2629.5,2629.1,0.266253]
[1723381941811,2.66219,2629.5,2628.8,2.6628]
[1723381941812,2.6622,2629.4,2628.8,2.6628]
[1723381942110,2.6622,2629.4,2628.7,2.3187]
[1723381942425,2.66202,2629.6,2629.0,2.66253]
[1723381942636,2.6621,2629.5,2629.0,2.66253]
[1723381942788,2.66202,2629.6,2628.8,3.160961]
[1723381942789,2.66202,2629.6,2628.8,3.160891]
[1723381942989,2.66202,2629.6,2629.0,2.66251]
[1723381943425,0.04999294,2629.7,2629.1,0.07605604]
[1723381943630,0.04999294,2629.7,2629.1,0.2738626]
[1723381943631,2.66206,2629.6,2629.1,0.2738626]
[1723381944327,0.04999294,2629.7,2628.8,0.498161]
[1723381944527,0.04999294,2629.7,2628.7,2.3187]
[1723381944528,2.6622,2629.4,2628.7,4.98159]
[1723381944688,2.6622,2629.4,2628.7,2.3187]
[1723381944887,2.6622,2629.4,2628.7,4.9816]
[1723381944888,2.66238,2629.3,2628.7,4.9816]
[1723381945122,2.66238,2629.3,2628.8,0.79816]
[1723381945288,0.04999294,2629.7,2628.9,2.66268]
[1723381945289,2.662,2629.6,2628.9,2.66268]
[1723381945502,2.66213,2629.5,2628.9,2.66268]
[1723381945695,2.71189294,2629.7,2629.0,0.07606149]
[1723381946039,0.04999294,2629.7,2629.2,2.66235]
[1723381946191,0.04999294,2629.7,2629.1,2.73846994]
[1723381946192,0.04999294,2629.7,2629.4,2.4607]
[1723381946588,0.04999294,2629.7,2629.4,2.53674992]
[1723381946891,0.04999294,2629.7,2629.5,0.25367499]
[1723381947213,2.71191294,2629.7,2629.5,0.31302533]
[1723381947424,5.324,2629.6,2629.5,0.05935034]
[1723381947816,2.66244,2629.2,2628.6,5.12365]
[1723381948006,2.66201,2629.6,2629.0,2.66253]
[1723381948208,2.66201,2629.6,2629.1,2.928743]
[1723381948522,0.04999294,2629.7,2629.1,0.32579529]
[1723381948728,0.04999294,2629.7,2629.1,0.05954229]
[1723381948902,2.66227,2629.4,2628.8,2.66278]
[1723381949101,2.66202,2629.6,2629.2,0.0594857]
[1723381949288,0.04999294,2629.7,2629.2,5.12304]
[1723381949490,0.04999294,2629.7,2629.3,0.57176062]
[1723381950028,0.04999294,2629.7,2629.3,3.23404062]
[1723381950334,0.04999294,2629.7,2629.3,0.05945662]
[1723381950628,2.66206,2629.6,2629.3,0.05945662]
[1723381950802,2.66216,2629.5,2629.3,0.05945662]
[1723381951144,2.71194294,2629.7,2629.1,2.66244]
[1723381951291,0.04999294,2629.7,2629.4,0.05933472]
[1723381951492,0.04999294,2629.7,2629.2,2.66234]
[1723381951828,0.04999294,2629.7,2629.5,0.05924302]
[1723381952122,0.04999294,2629.7,2629.6,0.05918646]
[1723381952332,0.04999294,2629.7,2629.3,0.07605229]
[1723381952333,0.04999294,2629.7,2629.3,0.27383923]
[1723381952502,0.04999294,2629.7,2629.6,0.05918646]
[1723381952699,0.04999294,2629.7,2629.5,2.66209]
[1723381952914,0.04999294,2629.7,2629.6,0.13523215]
[1723381953090,0.04999294,2629.7,2629.6,0.66103937]
[1723381953517,0.04999294,2629.7,2629.6,0.58499368]
[1723381953794,0.04999294,2629.7,2629.6,0.05918646]
[1723381954217,2.71189294,2629.7,2629.6,0.05918646]
[1723381954523,2.71189294,2629.7,2629.3,0.27383923]
[1723381954729,0.04999294,2629.7,2629.6,0.05885296]
[1723381954933,0.04999294,2629.7,2629.3,0.27383923]
[1723381955122,0.04999294,2629.7,2629.6,0.05885296]
[1723381955453,0.04999294,2629.7,2629.4,2.66213]
[1723381955658,0.04999294,2629.7,2629.6,2.72085296]
[1723381955815,0.04999294,2629.7,2629.6,7.86073893]
[1723381956015,0.04999294,2629.7,2629.6,7.91959189]
[1723381957355,0.015,2630.5,2629.7,2.4607]
[1723381957659,2.67615,2630.5,2629.9,5.12233]
[1723381957952,2.67615,2630.5,2630.0,0.64688869]
[1723381957953,0.015,2630.5,2630.0,0.64688869]
[1723381958316,0.015,2630.5,2630.2,2.66138]
[1723381958515,0.015,2630.5,2630.1,0.05857017]
[1723381958717,0.015,2630.5,2630.1,0.56930132]
[1723381959032,2.66119,2630.4,2630.2,0.05851363]
[1723381959239,5.32258,2630.3,2630.2,0.05851363]
[1723381959613,2.66162,2630.0,2629.5,0.30120227]
[1723381959908,2.66165,2630.0,2629.6,0.058554]
[1723381960111,3.0,2630.4,2629.6,0.058554]
[1723381960307,2.66178,2629.9,2629.6,0.058554]
[1723381960513,2.66177,2629.9,2629.6,0.058554]
[1723381960734,2.66211,2629.5,2629.2,2.4607]
[1723381960933,2.66191,2629.7,2629.3,0.24607]
[1723381961150,2.6622,2629.4,2629.3,0.30492772]
[1723381961352,2.66209,2629.6,2629.3,0.05885772]
[1723381961555,2.66209,2629.6,2629.0,2.6626]
[1723381961717,2.66206,2629.6,2629.4,0.05880114]
[1723381962066,2.66206,2629.6,2628.8,7.78614]
[1723381962067,2.66216,2629.5,2628.8,7.78614]
[1723381962223,2.66225,2629.4,2628.9,0.778614]
[1723381962433,2.66231,2629.3,2628.9,0.778614]
[1723381962617,2.66225,2629.4,2628.9,0.778614]
[1723381962819,2.66225,2629.4,2629.0,0.3239314]
[1723381963128,2.66206,2629.6,2629.0,2.9865014]
[1723381963516,2.66184,2629.8,2629.1,2.66244]
[1723381963723,2.66184,2629.8,2629.3,2.66229]
[1723381964224,2.66184,2629.8,2629.2,0.29863714]
[1723381964409,2.66184,2629.8,2629.2,2.96101714]
[1723381964613,2.66163,2630.0,2629.2,2.66232]
[1723381964847,3.23036,2630.3,2629.5,2.66204]
[1723381965028,2.3226,2630.5,2629.6,0.266204]
[1723381965224,2.66156,2630.1,2629.6,0.266204]
[1723381965449,2.66134,2630.3,2629.6,0.266204]
[1723381965653,2.66146,2630.2,2629.6,2.928164]
[1723381965813,2.66146,2630.2,2629.7,0.5590194]
[1723381966014,0.015,2630.5,2629.7,0.5590194]
[1723381966215,0.015,2630.5,2629.8,0.07603433]
[1723381966420,2.67616,2630.5,2629.9,2.66164]
[1723381966684,2.67615,2630.5,2629.9,2.66164]
[1723381966959,0.015,2630.5,2630.1,2.66148]
[1723381967160,0.015,2630.5,2630.2,0.0760332]
[1723381967317,0.015,2630.5,2630.1,5.09142]
[1723381968050,0.015,2630.5,2630.1,2.43]
[1723381968255,0.015,2630.5,2630.2,0.2696164]
[1723381968567,2.66129,2630.3,2630.0,0.266164]
[1723381968717,2.66163,2630.0,2629.6,0.266204]
[1723381969157,5.32291,2630.2,2629.5,2.66203]
[1723381969448,0.015,2630.5,2629.4,3.0]
[1723381969449,2.66157,2630.1,2629.4,3.0]
[1723381969638,2.66157,2630.1,2629.5,2.662]
[1723381969839,5.32314,2630.1,2629.5,2.662]
[1723381970160,2.66206,2629.6,2629.0,2.43]
[1723381970316,2.66206,2629.6,2629.1,0.509263]
[1723381970548,2.66206,2629.6,2629.1,3.171713]
[1723381970750,2.66185,2629.8,2629.1,3.171693]
[1723381971090,2.66199,2629.7,2629.2,0.5601693]
[1723381971259,2.66219,2629.5,2628.7,2.43]
[1723381971588,2.66195,2629.7,2629.1,5.32488]
[1723381971752,2.66195,2629.7,2629.1,2.66243]
[1723381972146,2.66195,2629.7,2629.2,2.6624]
[1723381972389,2.66195,2629.7,2629.1,2.66243]
[1723381972560,5.32352,2629.9,2629.2,2.66234]
[1723381972759,2.66165,2630.0,2629.3,3.194717]
[1723381972974,2.6617,2629.9,2629.3,8.286947]
[1723381973185,2.6617,2629.9,2629.3,5.09223]
[1723381973386,2.66165,2630.0,2629.3,2.43]
[1723381973559,2.66165,2630.0,2629.3,2.939246]
[1723381973895,2.66185,2629.8,2629.3,5.601546]
[1723381974590,2.66185,2629.8,2629.3,2.939246]
[1723381974887,2.66197,2629.7,2629.3,0.509246]
[1723381975087,2.66192,2629.7,2629.1,2.66243]
[1723381975292,2.662,2629.6,2629.0,5.09251]
[1723381975448,2.662,2629.6,2629.1,0.509251]
[1723381976192,2.66211,2629.5,2629.1,0.509251]
[1723381976574,2.3076,2629.6,2628.5,2.43]
[1723381976779,2.3076,2629.6,2629.2,0.05903804]
[1723381976780,5.3246,2629.3,2629.2,0.05903804]
[1723381977086,2.66257,2629.1,2628.4,2.66312]
[1723381977289,2.6624,2629.2,2628.5,0.266312]
[1723381977491,2.6624,2629.2,2628.5,0.32391353]
[1723381977695,2.6627,2629.0,2628.5,0.32391353]
[1723381977904,2.6627,2629.0,2628.5,0.05760153]
[1723381977905,2.66301,2628.6,2628.5,0.05760153]
[1723381978313,2.66291,2628.7,2627.9,2.66371]
[1723381978314,2.66312,2628.5,2627.9,2.66371]
[1723381978604,2.66312,2628.5,2628.0,0.775748]
[1723381978758,2.66333,2628.3,2628.0,0.775748]
[1723381978957,2.66359,2628.1,2627.5,2.43]
[1723381979156,5.32719,2628.1,2627.5,2.43]
[1723381979358,2.66359,2628.1,2627.5,2.43]
[1723381979586,2.66359,2628.1,2627.6,0.509417]
[1723381979998,2.66363,2628.0,2627.6,0.509417]
[1723381980167,2.66359,2628.1,2627.6,0.509417]
[1723381980168,2.6638,2627.9,2627.6,0.509417]
[1723381980365,2.66359,2628.1,2627.5,2.43]
[1723381980874,2.66336,2628.3,2627.5,2.43]
[1723381981180,2.66336,2628.3,2627.7,2.66386]
[1723381981358,2.66315,2628.5,2627.8,0.266386]
[1723381981555,9.96307,2628.6,2627.5,2.43]
[1723381981769,9.96307,2628.6,2627.9,2.66366]
[1723381982073,2.66311,2628.5,2627.8,2.66373]
[1723381982271,2.66311,2628.5,2627.9,0.266373]
[1723381983199,2.66311,2628.5,2627.9,2.930083]
[1723381983789,2.66327,2628.4,2627.9,0.266373]
[1723381984711,2.3076,2628.7,2628.2,2.66336]
[1723381984864,2.66277,2628.9,2628.3,2.66324]
[1723381985065,2.66277,2628.9,2628.3,5.32647]
[1723381985361,7.3,2629.0,2628.5,2.66305]
[1723381985569,9.78,2629.4,2628.6,0.27972304]
[1723381985803,2.6623,2629.3,2628.6,0.27972304]
[1723381985965,2.6623,2629.3,2628.7,0.05784594]
[1723381986171,2.6624,2629.2,2628.7,2.66289]
[1723381986412,2.66254,2629.1,2628.8,0.05778934]
[1723381986573,9.78,2629.4,2628.8,0.05778934]
[1723381986574,2.66236,2629.3,2628.8,0.05778934]
[1723381986773,2.66254,2629.1,2628.5,5.32615]
[1723381986971,2.66236,2629.3,2628.9,0.05773274]
[1723381987320,2.66192,2629.7,2628.9,2.66265]
[1723381987321,2.66215,2629.5,2628.9,2.66265]
[1723381987497,5.32435,2629.5,2628.9,2.66265]
[1723381987687,2.66243,2629.2,2628.9,0.76720782]
[1723381987881,2.66204,2629.6,2629.0,0.05767614]
[1723381988115,2.66204,2629.6,2629.0,2.66252]
[1723381988411,12.44184,2629.8,2629.2,2.6624]
[1723381988571,15.10371,2629.8,2629.2,2.6624]
[1723381988771,9.96184,2629.8,2629.3,2.72008831]
[1723381989002,2.66171,2629.9,2629.4,2.6622]
[1723381989310,19.77,2630.0,2629.4,0.54582775]
[1723381989611,2.66175,2629.9,2629.2,2.73844574]
[1723381989778,2.66187,2629.8,2629.3,0.07605574]
[1723381989974,2.66175,2629.9,2629.3,2.79591049]
[1723381990170,2.6622,2629.4,2629.3,0.05756475]
[1723381990519,2.66196,2629.7,2628.9,2.66266]
[1723381990671,2.66172,2629.9,2628.7,4.93333]
[1723381990871,2.66226,2629.4,2628.8,0.60432188]
[1723381991120,2.66183,2629.8,2628.8,0.60432188]
[1723381991486,2.66236,2629.3,2628.8,0.60432188]
[1723381991688,19.77,2630.0,2628.8,0.60432188]
[1723381991689,2.66261,2629.0,2628.8,0.05772738]
[1723381991903,2.66271,2628.9,2628.3,7.93378]
[1723381992216,2.48,2629.5,2628.0,2.2705]
[1723381992217,2.66291,2628.7,2628.0,2.2705]
[1723381992375,2.66317,2628.5,2628.1,0.493417]
[1723381992573,2.66294,2628.7,2628.1,3.156857]
[1723381993382,2.66301,2628.6,2628.1,3.156857]
[1723381993609,2.66301,2628.6,2628.2,0.5427357]
[1723381994224,2.66266,2629.0,2628.3,2.66324]
[1723381994430,2.66277,2628.9,2628.3,2.66324]
[1723381994625,2.66266,2629.0,2628.4,3.3261955]
[1723381994831,2.66246,2629.2,2628.6,2.66294]
[1723381995036,2.66224,2629.4,2628.8,2.66279]
[1723381995390,2.66204,2629.6,2629.0,2.66259]
[1723381995607,5.32411,2629.6,2629.1,0.27386599]
[1723381995804,2.6621,2629.5,2629.1,0.27386599]
[1723381996104,2.66165,2630.0,2629.1,3.01237337]
[1723381996342,2.6619,2629.7,2629.2,0.56749634]
[1723381996518,2.6619,2629.7,2629.2,3.22989634]
[1723381996841,5.3235,2629.9,2629.3,0.35798297]
[1723381997038,2.495,2630.5,2629.4,2.66218]
[1723381997210,2.495,2630.5,2629.5,0.3020163]
[1723381997211,2.66171,2629.9,2629.5,0.3020163]
[1723381997538,2.66181,2629.8,2629.6,0.05727469]
[1723381997702,5.3238,2629.7,2629.6,0.05727469]